[Event "FIDE U16 Olympiad_boards_1-80"]
[Site "Eindhoven, Netherlands"]
[Date "2023.08.14"]
[Round "2.68"]
[White "Wadifa, Ahmed"]
[Black "Nabirye, Caroline"]
[Result "1-0"]
[TimeControl "2700+10"]
[WhiteElo "1850"]
[BlackElo "1287"]

1. e4 {[%clk 00:45:18]} {[%emt 00:00:02]} e5 {[%clk 00:45:18]} {[%emt
00:00:03]} 2. Nf3 {[%clk 00:45:25]} {[%emt 00:00:03]} Nc6 {[%clk 00:45:25]}
{[%emt 00:00:03]} 3. Bb5 {[%clk 00:45:32]} {[%emt 00:00:03]} d6 {[%clk
00:45:15]} {[%emt 00:00:20]} 4. O-O {[%clk 00:45:30]} {[%emt 00:00:11]} Bd7
{[%clk 00:45:22]} {[%emt 00:00:03]} 5. c3 {[%clk 00:45:29]} {[%emt 00:00:11]}
Nf6 {[%clk 00:45:29]} {[%emt 00:00:04]} 6. Re1 {[%clk 00:45:25]} {[%emt
00:00:14]} Be7 {[%clk 00:45:31]} {[%emt 00:00:07]} 7. d4 {[%clk 00:44:20]}
{[%emt 00:01:15]} exd4 {[%clk 00:44:54]} {[%emt 00:00:49]} 8. cxd4 {[%clk
00:44:25]} {[%emt 00:00:04]} a6 {[%clk 00:44:52]} {[%emt 00:00:12]} 9. Ba4
{[%clk 00:44:25]} {[%emt 00:00:09]} h6 {[%clk 00:44:06]} {[%emt 00:00:57]} 10.
h3 {[%clk 00:41:54]} {[%emt 00:02:41]} O-O {[%clk 00:43:51]} {[%emt 00:00:25]}
11. Nc3 {[%clk 00:40:36]} {[%emt 00:01:28]} Nh7 {[%clk 00:42:34]} {[%emt
00:01:27]} 12. Nd5 {[%clk 00:33:31]} {[%emt 00:07:14]} Kh8 {[%clk 00:33:28]}
{[%emt 00:09:18]} 13. Nxe7 {[%clk 00:32:00]} {[%emt 00:01:40]} Qxe7 {[%clk
00:33:34]} {[%emt 00:00:04]} 14. Bc2 {[%clk 00:30:29]} {[%emt 00:01:40]} Rae8
{[%clk 00:32:46]} {[%emt 00:00:58]} 15. a3 {[%clk 00:27:14]} {[%emt 00:03:26]}
Qd8 {[%clk 00:31:32]} {[%emt 00:01:24]} 16. Qd3 {[%clk 00:17:32]} {[%emt
00:09:52]} Ne7 {[%clk 00:29:15]} {[%emt 00:02:27]} 17. e5 {[%clk 00:15:45]}
{[%emt 00:01:57]} Bf5 {[%clk 00:28:18]} {[%emt 00:01:07]} 18. Qd1 {[%clk
00:15:18]} {[%emt 00:00:37]} dxe5 {[%clk 00:22:42]} {[%emt 00:05:45]} 19. Bxf5
{[%clk 00:12:48]} {[%emt 00:02:40]} Nxf5 {[%clk 00:22:33]} {[%emt 00:00:19]} 20.
dxe5 {[%clk 00:12:46]} {[%emt 00:00:11]} Qxd1 {[%clk 00:22:24]} {[%emt
00:00:20]} 21. Rxd1 {[%clk 00:12:54]} {[%emt 00:00:02]} Rd8 {[%clk 00:22:28]}
{[%emt 00:00:06]} 22. Bf4 {[%clk 00:11:10]} {[%emt 00:01:54]} Rfe8 {[%clk
00:15:58]} {[%emt 00:06:40]} 23. g4 {[%clk 00:08:52]} {[%emt 00:02:29]} Ne7
{[%clk 00:14:07]} {[%emt 00:02:01]} 24. e6 {[%clk 00:07:45]} {[%emt 00:01:16]}
fxe6 {[%clk 00:12:35]} {[%emt 00:01:42]} 25. Bxc7 {[%clk 00:07:43]} {[%emt
00:00:12]} Rd5 {[%clk 00:11:14]} {[%emt 00:01:32]} 26. Re1 {[%clk 00:04:19]}
{[%emt 00:03:35]} Ng6 {[%clk 00:09:18]} {[%emt 00:02:06]} 27. Rad1 {[%clk
00:03:31]} {[%emt 00:00:57]} Nf6 {[%clk 00:07:09]} {[%emt 00:02:19]} 28. Ne5
{[%clk 00:02:15]} {[%emt 00:01:26]} Nxe5 {[%clk 00:06:33]} {[%emt 00:00:46]} 29.
Bxe5 {[%clk 00:02:22]} {[%emt 00:00:03]} Rxd1 {[%clk 00:05:12]} {[%emt
00:01:31]} 30. Rxd1 {[%clk 00:02:30]} {[%emt 00:00:02]} Nd5 {[%clk 00:04:58]}
{[%emt 00:00:24]} 31. Rc1 {[%clk 00:02:08]} {[%emt 00:00:31]} Re7 {[%clk
00:04:37]} {[%emt 00:00:31]} 32. Rc8+ {[%clk 00:02:00]} {[%emt 00:00:18]} Kh7
{[%clk 00:04:45]} {[%emt 00:00:03]} 33. Kg2 {[%clk 00:01:15]} {[%emt 00:00:55]}
Kg6 {[%clk 00:04:36]} {[%emt 00:00:19]} 34. h4 {[%clk 00:01:10]} {[%emt
00:00:15]} Kf7 {[%clk 00:04:37]} {[%emt 00:00:08]} 35. Rd8 {[%clk 00:01:01]}
{[%emt 00:00:19]} g6 {[%clk 00:04:15]} {[%emt 00:00:34]} 36. Bd6 {[%clk
00:01:02]} {[%emt 00:00:09]} Re8 {[%clk 00:03:55]} {[%emt 00:00:29]} 37. Rd7+
{[%clk 00:01:11]} {[%emt 00:00:01]} Kf6 {[%clk 00:03:43]} {[%emt 00:00:22]} 38.
Rxb7 {[%clk 00:00:59]} {[%emt 00:00:22]} Ra8 {[%clk 00:03:32]} {[%emt
00:00:21]} 39. f4 {[%clk 00:00:59]} {[%emt 00:00:11]} Ne3+ {[%clk 00:03:29]}
{[%emt 00:00:13]} 40. Kf3 {[%clk 00:01:08]} Nd5 {[%clk 00:03:18]} {[%emt
00:00:20]} 41. Be5# {[%clk 00:01:13]} {[%emt 00:00:05]} 1-0

[Event "FIDE U16 Olympiad_boards_1-80"]
[Site "Eindhoven, Netherlands"]
[Date "2023.08.14"]
[Round "2.69"]
[White "Tandeka, Shiloh"]
[Black "Fu, Yihe"]
[Result "0-1"]
[TimeControl "2700+10"]
[WhiteElo "1433"]
[BlackElo "2097"]

1. e4 {[%clk 00:45:06]} {[%emt 00:00:14]} c5 {[%clk 00:45:18]} {[%emt
00:00:02]} 2. Nc3 {[%clk 00:45:13]} {[%emt 00:00:02]} Nc6 {[%clk 00:45:25]}
{[%emt 00:00:03]} 3. f4 {[%clk 00:45:22]} {[%emt 00:00:01]} e6 {[%clk
00:45:09]} {[%emt 00:00:26]} 4. Nf3 {[%clk 00:45:30]} {[%emt 00:00:02]} Qc7
{[%clk 00:45:12]} {[%emt 00:00:08]} 5. d3 {[%clk 00:43:35]} {[%emt 00:02:04]}
d6 {[%clk 00:42:14]} {[%emt 00:03:08]} 6. Be2 {[%clk 00:43:02]} {[%emt
00:00:43]} Nge7 {[%clk 00:42:11]} {[%emt 00:00:13]} 7. O-O {[%clk 00:42:56]}
{[%emt 00:00:16]} d5 {[%clk 00:40:46]} {[%emt 00:01:35]} 8. e5 {[%clk
00:40:04]} {[%emt 00:03:02]} Nf5 {[%clk 00:40:33]} {[%emt 00:00:24]} 9. Qe1
{[%clk 00:39:18]} {[%emt 00:00:55]} Be7 {[%clk 00:39:45]} {[%emt 00:00:59]} 10.
Bd1 {[%clk 00:39:21]} {[%emt 00:00:06]} a6 {[%clk 00:39:33]} {[%emt 00:00:23]}
11. Kh1 {[%clk 00:39:20]} {[%emt 00:00:11]} b5 {[%clk 00:39:39]} {[%emt
00:00:03]} 12. Qf2 {[%clk 00:37:39]} {[%emt 00:01:51]} Bb7 {[%clk 00:38:29]}
{[%emt 00:01:21]} 13. Ne2 {[%clk 00:36:41]} {[%emt 00:01:07]} h5 {[%clk
00:37:06]} {[%emt 00:01:33]} 14. d4 {[%clk 00:32:32]} {[%emt 00:04:19]} cxd4
{[%clk 00:36:19]} {[%emt 00:00:58]} 15. Nexd4 {[%clk 00:32:35]} {[%emt
00:00:07]} Ncxd4 {[%clk 00:34:55]} {[%emt 00:01:33]} 16. Nxd4 {[%clk 00:32:40]}
{[%emt 00:00:05]} Bc5 {[%clk 00:35:01]} {[%emt 00:00:04]} 17. c3 {[%clk
00:32:48]} {[%emt 00:00:02]} h4 {[%clk 00:35:10]} {[%emt 00:00:02]} 18. Nxf5
{[%clk 00:31:09]} {[%emt 00:01:48]} Bxf2 {[%clk 00:35:11]} {[%emt 00:00:09]} 19.
Nd6+ {[%clk 00:31:17]} {[%emt 00:00:02]} Ke7 {[%clk 00:34:38]} {[%emt
00:00:42]} 20. Rxf2 {[%clk 00:31:24]} {[%emt 00:00:05]} h3 {[%clk 00:33:59]}
{[%emt 00:00:48]} 21. f5 {[%clk 00:30:14]} {[%emt 00:01:20]} hxg2+ {[%clk
00:31:45]} {[%emt 00:02:25]} 22. Kxg2 {[%clk 00:28:43]} {[%emt 00:01:41]} Qb6
{[%clk 00:31:45]} {[%emt 00:00:09]} 23. fxe6 {[%clk 00:23:38]} {[%emt
00:05:16]} Rxh2+ {[%clk 00:31:42]} {[%emt 00:00:12]} 24. Kxh2 {[%clk 00:22:20]}
{[%emt 00:01:27]} Qxf2+ {[%clk 00:31:49]} {[%emt 00:00:05]} 25. Kh3 {[%clk
00:22:15]} {[%emt 00:00:14]} Rh8+ {[%clk 00:31:57]} {[%emt 00:00:03]} 26. Kg4
{[%clk 00:22:23]} {[%emt 00:00:01]} Rh4+ {[%clk 00:32:05]} {[%emt 00:00:02]} 27.
Kg5 {[%clk 00:22:09]} {[%emt 00:00:24]} Qg3+ {[%clk 00:32:14]} {[%emt
00:00:02]} 28. Kf5 {[%clk 00:22:16]} {[%emt 00:00:02]} fxe6# {[%clk 00:32:22]}
{[%emt 00:00:03]} 0-1

[Event "FIDE U16 Olympiad_boards_1-80"]
[Site "Eindhoven, Netherlands"]
[Date "2023.08.14"]
[Round "2.70"]
[White "Teh, Rui Gen"]
[Black "Kigundu, Ethan"]
[Result "1-0"]
[TimeControl "2700+10"]
[WhiteElo "1724"]
[BlackElo "1620"]

1. e4 {[%clk 00:45:13]} {[%emt 00:00:06]} c6 {[%clk 00:45:18]} {[%emt
00:00:03]} 2. d4 {[%clk 00:45:16]} {[%emt 00:00:07]} d5 {[%clk 00:45:26]}
{[%emt 00:00:02]} 3. Nd2 {[%clk 00:45:19]} {[%emt 00:00:07]} dxe4 {[%clk
00:45:32]} {[%emt 00:00:04]} 4. Nxe4 {[%clk 00:45:25]} {[%emt 00:00:04]} Nd7
{[%clk 00:45:39]} {[%emt 00:00:03]} 5. Bd3 {[%clk 00:44:24]} {[%emt 00:01:10]}
Ngf6 {[%clk 00:45:42]} {[%emt 00:00:08]} 6. Nxf6+ {[%clk 00:44:28]} {[%emt
00:00:06]} Nxf6 {[%clk 00:45:50]} {[%emt 00:00:03]} 7. c3 {[%clk 00:44:35]}
{[%emt 00:00:02]} Bg4 {[%clk 00:45:51]} {[%emt 00:00:10]} 8. Qb3 {[%clk
00:43:12]} {[%emt 00:01:32]} Qd7 {[%clk 00:45:13]} {[%emt 00:00:49]} 9. h3
{[%clk 00:43:18]} {[%emt 00:00:04]} Bh5 {[%clk 00:45:04]} {[%emt 00:00:19]} 10.
Bf4 {[%clk 00:43:11]} {[%emt 00:00:16]} e6 {[%clk 00:43:42]} {[%emt 00:01:32]}
11. Ne2 {[%clk 00:42:57]} {[%emt 00:00:24]} Be7 {[%clk 00:42:36]} {[%emt
00:01:16]} 12. O-O {[%clk 00:42:06]} {[%emt 00:01:02]} O-O {[%clk 00:42:12]}
{[%emt 00:00:34]} 13. Rfe1 {[%clk 00:40:17]} {[%emt 00:01:58]} Bg6 {[%clk
00:39:36]} {[%emt 00:02:46]} 14. Bxg6 {[%clk 00:39:09]} {[%emt 00:01:19]} hxg6
{[%clk 00:39:43]} {[%emt 00:00:03]} 15. Rad1 {[%clk 00:39:17]} {[%emt
00:00:01]} Rfd8 {[%clk 00:33:55]} {[%emt 00:05:57]} 16. Nc1 {[%clk 00:38:25]}
{[%emt 00:01:02]} Rac8 {[%emt 00:01:52]} 17. Nd3 {[%clk 00:38:33]} Nd5 {[%clk
00:27:31]} {[%emt 00:04:54]} 18. Bg3 {[%clk 00:37:07]} {[%emt 00:01:37]} Bd6
{[%clk 00:26:57]} {[%emt 00:00:44]} 19. Bxd6 {[%clk 00:36:20]} {[%emt
00:00:57]} Qxd6 {[%clk 00:27:04]} {[%emt 00:00:03]} 20. Qxb7 {[%clk 00:36:19]}
{[%emt 00:00:12]} Rc7 {[%clk 00:26:10]} {[%emt 00:01:03]} 21. Qb3 {[%clk
00:35:46]} {[%emt 00:00:43]} Nf4 {[%clk 00:22:29]} {[%emt 00:03:51]} 22. Nxf4
{[%clk 00:31:45]} {[%emt 00:04:12]} Qxf4 {[%clk 00:22:34]} {[%emt 00:00:04]} 23.
Qc2 {[%clk 00:26:04]} {[%emt 00:05:50]} Rcd7 {[%clk 00:22:04]} {[%emt
00:00:40]} 24. g3 {[%clk 00:22:54]} {[%emt 00:03:21]} Qc7 {[%clk 00:21:09]}
{[%emt 00:01:06]} 25. b4 {[%clk 00:17:34]} {[%emt 00:05:30]} a5 {[%clk
00:20:12]} {[%emt 00:01:06]} 26. a3 {[%clk 00:16:56]} {[%emt 00:00:48]} axb4
{[%clk 00:19:45]} {[%emt 00:00:37]} 27. axb4 {[%clk 00:17:05]} {[%emt
00:00:02]} Ra8 {[%clk 00:18:42]} {[%emt 00:01:11]} 28. Ra1 {[%clk 00:16:43]}
{[%emt 00:00:33]} Rdd8 {[%clk 00:15:14]} {[%emt 00:03:38]} 29. Ra4 {[%clk
00:13:21]} {[%emt 00:03:32]} Ra7 {[%clk 00:10:07]} {[%emt 00:05:16]} 30. Rea1
{[%clk 00:10:34]} {[%emt 00:02:58]} Rda8 {[%clk 00:10:06]} {[%emt 00:00:10]} 31.
Rxa7 {[%clk 00:08:22]} {[%emt 00:02:23]} Rxa7 {[%clk 00:10:11]} {[%emt
00:00:05]} 32. Ra4 {[%clk 00:08:09]} {[%emt 00:00:24]} Rxa4 {[%clk 00:07:03]}
{[%emt 00:03:18]} 33. Qxa4 {[%clk 00:08:17]} {[%emt 00:00:01]} Kh7 {[%clk
00:06:03]} {[%emt 00:01:10]} 34. Qa5 {[%clk 00:08:15]} {[%emt 00:00:12]} Qd7
{[%clk 00:05:10]} {[%emt 00:01:03]} 35. Qc5 {[%clk 00:07:54]} {[%emt 00:00:32]}
Qd5 {[%clk 00:04:10]} {[%emt 00:01:10]} 36. Qxd5 {[%clk 00:07:03]} {[%emt
00:01:01]} exd5 {[%clk 00:04:18]} {[%emt 00:00:02]} 37. Kf1 {[%clk 00:06:37]}
{[%emt 00:00:36]} Kg8 {[%clk 00:01:35]} {[%emt 00:02:52]} 38. c4 {[%clk
00:02:24]} {[%emt 00:04:24]} Kf8 {[%clk 00:01:03]} {[%emt 00:00:42]} 39. cxd5
{[%clk 00:02:29]} {[%emt 00:00:05]} cxd5 {[%clk 00:01:11]} {[%emt 00:00:02]} 40.
Ke2 {[%clk 00:02:38]} Ke7 {[%clk 00:01:04]} {[%emt 00:00:17]} 41. Kd3 {[%clk
00:02:47]} {[%emt 00:00:01]} Kd6 {[%clk 00:00:57]} {[%emt 00:00:16]} 42. b5
{[%clk 00:02:52]} {[%emt 00:00:05]} Kc7 {[%clk 00:01:02]} {[%emt 00:00:05]} 43.
Kc3 {[%clk 00:03:01]} {[%emt 00:00:02]} Kb6 {[%clk 00:01:11]} {[%emt 00:00:01]}
44. Kb4 {[%clk 00:03:10]} g5 {[%clk 00:00:27]} {[%emt 00:00:54]} 45. f4 {[%clk
00:02:53]} {[%emt 00:00:26]} gxf4 {[%clk 00:00:29]} {[%emt 00:00:08]} 46. gxf4
{[%clk 00:03:02]} {[%emt 00:00:02]} f6 {[%clk 00:00:38]} {[%emt 00:00:01]} 47.
f5 {[%clk 00:03:09]} {[%emt 00:00:02]} 1-0

[Event "FIDE U16 Olympiad_boards_1-80"]
[Site "Eindhoven, Netherlands"]
[Date "2023.08.14"]
[Round "2.71"]
[White "Mwase, Mathew"]
[Black "Hu, Yifei"]
[Result "0-1"]
[TimeControl "2700+10"]
[WhiteElo "1478"]
[BlackElo "1825"]

1. d4 {[%clk 00:45:18]} e6 {[%clk 00:45:14]} {[%emt 00:00:08]} 2. c4 {[%clk
00:45:25]} {[%emt 00:00:02]} b6 {[%clk 00:45:09]} {[%emt 00:00:16]} 3. Nc3
{[%clk 00:45:24]} {[%emt 00:00:11]} Bb7 {[%clk 00:45:17]} {[%emt 00:00:02]} 4.
e4 {[%clk 00:44:55]} {[%emt 00:00:39]} Bb4 {[%clk 00:45:25]} {[%emt 00:00:01]}
5. Qc2 {[%clk 00:44:57]} {[%emt 00:00:08]} Qh4 {[%clk 00:45:25]} {[%emt
00:00:11]} 6. d5 {[%clk 00:43:33]} {[%emt 00:01:34]} exd5 {[%clk 00:44:56]}
{[%emt 00:00:38]} 7. exd5 {[%clk 00:42:10]} {[%emt 00:01:34]} Nf6 {[%clk
00:45:00]} {[%emt 00:00:05]} 8. Bd2 {[%clk 00:41:49]} {[%emt 00:00:31]} O-O
{[%clk 00:44:17]} {[%emt 00:00:53]} 9. Bd3 {[%clk 00:37:04]} {[%emt 00:04:56]}
c6 {[%clk 00:42:41]} {[%emt 00:01:46]} 10. Nge2 {[%clk 00:27:46]} {[%emt
00:09:28]} cxd5 {[%clk 00:39:47]} {[%emt 00:03:04]} 11. Nxd5 {[%clk 00:23:13]}
{[%emt 00:04:42]} Nxd5 {[%clk 00:39:14]} {[%emt 00:00:43]} 12. cxd5 {[%clk
00:23:19]} {[%emt 00:00:04]} Rc8 {[%clk 00:39:04]} {[%emt 00:00:20]} 13. Qb3
{[%clk 00:18:54]} {[%emt 00:04:35]} Bxd2+ {[%clk 00:39:10]} {[%emt 00:00:04]}
14. Kxd2 {[%clk 00:19:03]} {[%emt 00:00:01]} Qg5+ {[%clk 00:39:16]} {[%emt
00:00:05]} 15. f4 {[%clk 00:14:38]} {[%emt 00:04:34]} Qxd5 {[%clk 00:35:57]}
{[%emt 00:03:28]} 16. Qxd5 {[%clk 00:14:35]} {[%emt 00:00:14]} Bxd5 {[%clk
00:36:06]} {[%emt 00:00:02]} 17. Rhg1 {[%clk 00:14:18]} {[%emt 00:00:27]} Bb7
{[%clk 00:36:00]} {[%emt 00:00:16]} 18. Nc3 {[%clk 00:13:17]} {[%emt 00:01:11]}
Na6 {[%clk 00:33:34]} {[%emt 00:02:36]} 19. a3 {[%clk 00:10:01]} {[%emt
00:03:26]} Nc5 {[%clk 00:32:53]} {[%emt 00:00:51]} 20. Bc2 {[%clk 00:10:00]}
{[%emt 00:00:11]} d5 {[%clk 00:32:20]} {[%emt 00:00:43]} 21. Rae1 {[%clk
00:06:53]} {[%emt 00:03:17]} d4 {[%clk 00:31:45]} {[%emt 00:00:45]} 22. Ne4
{[%clk 00:06:22]} {[%emt 00:00:40]} Bxe4 {[%clk 00:30:37]} {[%emt 00:01:18]} 23.
Bxe4 {[%clk 00:06:29]} {[%emt 00:00:04]} Rab8 {[%clk 00:30:46]} {[%emt
00:00:02]} 24. Bc2 {[%clk 00:06:02]} {[%emt 00:00:36]} a5 {[%clk 00:28:47]}
{[%emt 00:02:09]} 25. Re7 {[%clk 00:04:42]} {[%emt 00:01:29]} a4 {[%clk
00:27:00]} {[%emt 00:01:58]} 26. Rge1 {[%clk 00:04:06]} {[%emt 00:00:45]} Ra8
{[%clk 00:16:06]} {[%emt 00:11:05]} 27. Bf5 {[%clk 00:02:35]} {[%emt 00:01:41]}
Rd8 {[%clk 00:16:04]} {[%emt 00:00:12]} 28. Rc7 {[%clk 00:02:31]} {[%emt
00:00:14]} g6 {[%clk 00:14:21]} {[%emt 00:01:53]} 29. Bd3 {[%clk 00:01:51]}
{[%emt 00:00:47]} Ne6 {[%clk 00:13:06]} {[%emt 00:01:28]} 30. Rb7 {[%clk
00:01:47]} {[%emt 00:00:14]} Rab8 {[%clk 00:13:00]} {[%emt 00:00:16]} 31. Rxb8
{[%clk 00:01:24]} {[%emt 00:00:33]} Rxb8 {[%clk 00:13:09]} 32. f5 {[%clk
00:01:28]} {[%emt 00:00:05]} Nc5 {[%clk 00:13:15]} {[%emt 00:00:05]} 33. fxg6
{[%clk 00:01:29]} {[%emt 00:00:09]} hxg6 {[%clk 00:13:24]} {[%emt 00:00:01]} 34.
Bb5 {[%clk 00:01:10]} {[%emt 00:00:29]} Kf8 {[%clk 00:13:06]} {[%emt 00:00:27]}
35. Re5 {[%clk 00:00:55]} {[%emt 00:00:25]} Rd8 {[%clk 00:12:58]} {[%emt
00:00:19]} 36. h4 {[%clk 00:00:54]} {[%emt 00:00:11]} d3 {[%clk 00:12:55]}
{[%emt 00:00:12]} 37. Bc4 {[%clk 00:00:48]} {[%emt 00:00:16]} Rd4 {[%clk
00:13:02]} {[%emt 00:00:03]} 38. Bb5 {[%clk 00:00:30]} {[%emt 00:00:29]} Ne4+
{[%clk 00:13:03]} {[%emt 00:00:09]} 39. Kd1 {[%clk 00:00:21]} {[%emt 00:00:18]}
d2 {[%clk 00:13:10]} {[%emt 00:00:03]} 40. Re8+ {[%clk 00:00:20]} {[%emt
00:00:12]} Kg7 {[%clk 00:13:19]} {[%emt 00:00:01]} 41. Rxe4 {[%clk 00:00:25]}
{[%emt 00:00:05]} Rxe4 {[%clk 00:13:27]} {[%emt 00:00:01]} 42. Kxd2 {[%clk
00:00:34]} {[%emt 00:00:02]} Rxh4 {[%clk 00:13:33]} {[%emt 00:00:04]} 43. Kc3
{[%clk 00:00:32]} {[%emt 00:00:12]} Rg4 {[%clk 00:13:38]} {[%emt 00:00:05]} 44.
Bc6 {[%clk 00:00:35]} {[%emt 00:00:06]} Kf6 {[%clk 00:13:39]} {[%emt 00:00:09]}
45. Bf3 {[%clk 00:00:36]} {[%emt 00:00:09]} Rf4 {[%clk 00:13:46]} {[%emt
00:00:03]} 46. Kd3 {[%clk 00:00:39]} {[%emt 00:00:07]} Ke5 {[%clk 00:13:44]}
{[%emt 00:00:13]} 47. Bc6 {[%clk 00:00:34]} {[%emt 00:00:15]} f5 {[%clk
00:13:42]} {[%emt 00:00:11]} 48. Ke3 {[%clk 00:00:37]} {[%emt 00:00:08]} Re4+
{[%clk 00:13:30]} {[%emt 00:00:22]} 49. Kd3 {[%clk 00:00:34]} {[%emt 00:00:13]}
Rd4+ {[%clk 00:13:35]} {[%emt 00:00:05]} 50. Ke3 {[%clk 00:00:42]} {[%emt
00:00:01]} f4+ {[%clk 00:13:44]} {[%emt 00:00:02]} 51. Kf3 {[%clk 00:00:47]}
{[%emt 00:00:05]} Rd3+ {[%clk 00:13:49]} {[%emt 00:00:06]} 52. Kg4 {[%clk
00:00:45]} {[%emt 00:00:10]} Rg3+ {[%clk 00:13:56]} {[%emt 00:00:03]} 53. Kh4
{[%clk 00:00:52]} {[%emt 00:00:03]} Kf5 {[%clk 00:13:49]} {[%emt 00:00:18]} 54.
Bf3 {[%clk 00:00:27]} {[%emt 00:00:35]} g5+ {[%clk 00:13:52]} {[%emt 00:00:07]}
55. Kh5 {[%clk 00:00:30]} {[%emt 00:00:06]} Rxf3 {[%clk 00:14:00]} {[%emt
00:00:02]} 56. gxf3 {[%clk 00:00:37]} {[%emt 00:00:03]} b5 {[%clk 00:14:09]}
{[%emt 00:00:01]} 0-1

[Event "FIDE U16 Olympiad_boards_1-80"]
[Site "Eindhoven, Netherlands"]
[Date "2023.08.14"]
[Round "2.72"]
[White "Cheng, Chao Xin"]
[Black "Zuri, Tatiina"]
[Result "1-0"]
[TimeControl "2700+10"]
[WhiteElo "1748"]
[BlackElo "1297"]

1. e4 {[%clk 00:45:10]} d6 {[%clk 00:45:18]} {[%emt 16:31:38]} 2. d4 {[%clk
00:45:25]} Nf6 {[%clk 00:45:25]} {[%emt 00:00:06]} 3. Nc3 {[%clk 00:45:33]} g6
{[%clk 00:45:27]} {[%emt 00:00:10]} 4. g3 {[%clk 00:45:39]} Bg7 {[%clk
00:45:34]} {[%emt 00:00:06]} 5. Bg2 {[%clk 00:45:46]} c6 {[%clk 00:45:33]}
{[%emt 00:00:14]} 6. a4 {[%clk 00:45:14]} Nbd7 {[%clk 00:45:08]} {[%emt
00:01:17]} 7. Nge2 {[%clk 00:44:54]} e5 {[%emt 00:00:50]} 8. d5 c5 {[%clk
00:44:59]} 9. O-O {[%clk 00:41:42]} O-O {[%clk 00:42:35]} {[%emt 00:07:31]} 10.
h3 {[%clk 00:37:39]} h6 {[%clk 00:41:33]} {[%emt 00:04:10]} 11. Be3 {[%clk
00:35:15]} Kh7 {[%clk 00:38:33]} {[%emt 00:05:43]} 12. Qd2 {[%clk 00:32:01]}
Ng8 {[%clk 00:36:42]} {[%emt 00:05:26]} 13. a5 {[%clk 00:23:23]} b6 {[%clk
00:27:11]} {[%emt 00:18:28]} 14. Nb5 {[%clk 00:16:39]} Nb8 {[%clk 00:24:02]}
{[%emt 00:10:13]} 15. axb6 {[%clk 00:15:43]} Qxb6 {[%clk 00:23:57]} {[%emt
00:01:21]} 16. Qa5 {[%clk 00:13:50]} Qxa5 {[%clk 00:23:08]} {[%emt 00:03:02]}
17. Rxa5 {[%clk 00:13:58]} a6 {[%clk 00:22:11]} {[%emt 00:01:09]} 18. Nxd6
{[%clk 00:13:44]} c4 {[%clk 00:17:42]} {[%emt 00:05:03]} 19. Nxc4 {[%clk
00:13:34]} f5 {[%clk 00:17:29]} {[%emt 00:00:44]} 20. exf5 {[%clk 00:12:58]}
Bxf5 {[%clk 00:17:29]} {[%emt 00:00:55]} 21. d6 {[%clk 00:12:51]} Ra7 {[%clk
00:17:07]} {[%emt 00:00:49]} 22. Bxa7 {[%clk 00:12:56]} 1-0

[Event "FIDE U16 Olympiad_boards_1-80"]
[Site "Eindhoven, Netherlands"]
[Date "2023.08.14"]
[Round "2.73"]
[White "Kurt, Sascha"]
[Black "Antoniou, Rafail"]
[Result "0-1"]
[TimeControl "2700+10"]
[WhiteElo "1800"]
[BlackElo "1874"]

1. e4 {[%clk 00:45:17]} {[%emt 00:00:03]} c5 {[%clk 00:45:14]} {[%emt
00:00:06]} 2. Nf3 {[%clk 00:45:24]} {[%emt 00:00:03]} e6 {[%clk 00:45:21]}
{[%emt 00:00:03]} 3. d4 {[%clk 00:45:33]} {[%emt 00:00:01]} cxd4 {[%clk
00:45:26]} {[%emt 00:00:05]} 4. Nxd4 {[%clk 00:45:41]} {[%emt 00:00:02]} Nf6
{[%clk 00:45:26]} {[%emt 00:00:10]} 5. Nc3 {[%clk 00:45:49]} {[%emt 00:00:02]}
Nc6 {[%clk 00:45:34]} {[%emt 00:00:02]} 6. Nxc6 {[%clk 00:45:57]} {[%emt
00:00:02]} bxc6 {[%clk 00:45:41]} {[%emt 00:00:03]} 7. e5 {[%clk 00:46:06]} Nd5
{[%clk 00:45:49]} {[%emt 00:00:02]} 8. Ne4 {[%clk 00:46:14]} {[%emt 00:00:01]}
Qc7 {[%clk 00:45:59]} {[%emt 00:00:01]} 9. f4 {[%clk 00:46:23]} {[%emt
00:00:01]} Qb6 {[%clk 00:46:08]} {[%emt 00:00:02]} 10. c4 {[%clk 00:46:32]}
{[%emt 00:00:01]} Ne3 {[%clk 00:46:17]} {[%emt 00:00:01]} 11. Qd3 {[%clk
00:45:39]} {[%emt 00:01:01]} Bb4+ {[%clk 00:45:15]} {[%emt 00:01:12]} 12. Bd2
{[%clk 00:44:14]} {[%emt 00:01:35]} Ba6 {[%clk 00:45:20]} {[%emt 00:00:05]} 13.
b3 {[%clk 00:38:13]} {[%emt 00:06:12]} O-O {[%clk 00:45:20]} {[%emt 00:00:11]}
14. Rc1 {[%clk 00:20:57]} {[%emt 00:17:25]} Nd5 {[%clk 00:43:41]} {[%emt
00:01:49]} 15. g3 {[%clk 00:16:20]} {[%emt 00:04:47]} Qa5 {[%clk 00:34:49]}
{[%emt 00:09:02]} 16. Bxb4 {[%emt 00:04:40]} Nxb4 {[%clk 00:34:10]} {[%emt
00:00:48]} 17. Qd2 {[%clk 00:11:59]} {[%emt 00:00:01]} c5 {[%clk 00:33:27]}
{[%emt 00:00:54]} 18. Nc3 {[%clk 00:08:42]} {[%emt 00:03:27]} Bb7 {[%clk
00:33:27]} {[%emt 00:00:10]} 19. Rg1 {[%clk 00:08:34]} {[%emt 00:00:18]} Rab8
{[%clk 00:31:04]} {[%emt 00:02:33]} 20. Bg2 {[%clk 00:08:06]} {[%emt 00:00:38]}
Rfd8 {[%clk 00:30:50]} {[%emt 00:00:23]} 21. Bxb7 {[%clk 00:05:58]} {[%emt
00:02:20]} Rxb7 {[%clk 00:30:56]} {[%emt 00:00:03]} 22. Rg2 {[%clk 00:06:06]}
{[%emt 00:00:02]} d5 {[%clk 00:30:26]} {[%emt 00:00:41]} 23. exd6 {[%clk
00:05:33]} {[%emt 00:00:42]} Rbd7 {[%clk 00:30:28]} {[%emt 00:00:08]} 24. Rd1
{[%clk 00:03:31]} {[%emt 00:02:12]} Qb6 {[%clk 00:28:41]} {[%emt 00:01:57]} 25.
Qe3 {[%clk 00:02:02]} {[%emt 00:01:38]} Rxd6 {[%clk 00:26:20]} {[%emt
00:02:33]} 26. Rgd2 {[%clk 00:02:01]} {[%emt 00:00:11]} Rd4 {[%clk 00:25:49]}
{[%emt 00:00:40]} 27. Ke2 {[%clk 00:01:30]} {[%emt 00:00:40]} Nc6 {[%clk
00:23:39]} {[%emt 00:02:21]} 28. Nb5 {[%clk 00:01:13]} {[%emt 00:00:27]} Rxd2+
{[%clk 00:22:43]} {[%emt 00:01:06]} 29. Rxd2 {[%clk 00:01:23]} Nd4+ {[%clk
00:21:51]} {[%emt 00:01:03]} 30. Nxd4 {[%clk 00:01:29]} {[%emt 00:00:03]} cxd4
{[%clk 00:21:49]} {[%emt 00:00:12]} 31. Qd3 {[%clk 00:01:28]} {[%emt 00:00:11]}
a5 {[%clk 00:21:42]} {[%emt 00:00:17]} 32. Rd1 {[%clk 00:00:58]} {[%emt
00:00:40]} f6 {[%clk 00:21:46]} {[%emt 00:00:06]} 33. Qf3 {[%clk 00:01:05]}
{[%emt 00:00:03]} Qc5 {[%clk 00:20:39]} {[%emt 00:01:17]} 34. Qe4 {[%clk
00:00:40]} {[%emt 00:00:34]} Qh5+ {[%clk 00:20:37]} {[%emt 00:00:13]} 35. Kd3
{[%clk 00:00:36]} {[%emt 00:00:14]} Qxd1# {[%clk 00:20:44]} {[%emt 00:00:03]}
0-1